[Event "*** SCC Grand Prix: Titled Tuesday Blitz"]
[Site "Chess.com"]
[Date "2020.10.06"]
[Round "7"]
[White "Mr_Sinigami"]
[Black "tsvet2005"]
[Result "0-1"]
[WhiteElo "2498"]
[BlackElo "2685"]
[TimeControl "180+1"]
[EndTime "11:19:37 PDT"]
[Termination "tsvet2005 won on time"]

1. d4 {[%clk 0:03:00.9]} 1... d5 {[%clk 0:02:59.8]} 2. Nf3 {[%clk 0:03:01.2]}
2... Nf6 {[%clk 0:02:59.7]} 3. Bf4 {[%clk 0:03:01.1]} 3... c5 {[%clk 0:02:59.6]}
4. e3 {[%clk 0:03:01.1]} 4... Nc6 {[%clk 0:02:59.6]} 5. c3 {[%clk 0:02:57.9]}
5... Qb6 {[%clk 0:02:59.4]} 6. Qc1 {[%clk 0:02:55]} 6... Bf5 {[%clk 0:02:57.8]}
7. Nbd2 {[%clk 0:02:52.3]} 7... e6 {[%clk 0:02:56.5]} 8. h3 {[%clk 0:02:51.7]}
8... h6 {[%clk 0:02:56.4]} 9. Be2 {[%clk 0:02:51.4]} 9... Be7 {[%clk 0:02:56.7]}
10. O-O {[%clk 0:02:51.4]} 10... O-O {[%clk 0:02:57.4]} 11. Nb3 {[%clk
0:02:50.7]} 11... cxd4 {[%clk 0:02:55.8]} 12. exd4 {[%clk 0:02:47.4]} 12... a5
{[%clk 0:02:52]} 13. Be3 {[%clk 0:02:24.4]} 13... Ne4 {[%clk 0:02:49.3]} 14.
Nbd2 {[%clk 0:02:16.8]} 14... a4 {[%clk 0:02:48.2]} 15. Nxe4 {[%clk 0:02:15.8]}
15... Bxe4 {[%clk 0:02:48.4]} 16. Nd2 {[%clk 0:02:14.8]} 16... a3 {[%clk
0:02:46.1]} 17. b4 {[%clk 0:02:00.6]} 17... Bg6 {[%clk 0:02:44]} 18. Nb3 {[%clk
0:01:59.7]} 18... Rfc8 {[%clk 0:02:41.8]} 19. Qd2 {[%clk 0:01:57.4]} 19... Nxb4
{[%clk 0:02:25.1]} 20. Nc5 {[%clk 0:01:26]} 20... Nc6 {[%clk 0:02:16.5]} 21. Bd3
{[%clk 0:01:25.7]} 21... Bxd3 {[%clk 0:02:11.8]} 22. Nxd3 {[%clk 0:01:22.7]}
22... Na5 {[%clk 0:02:10.3]} 23. Bxh6 {[%clk 0:01:16.3]} 23... Nc4 {[%clk
0:02:03.6]} 24. Qc1 {[%clk 0:01:09.7]} 24... gxh6 {[%clk 0:02:01.2]} 25. Qxh6
{[%clk 0:01:08.5]} 25... e5 {[%clk 0:01:55.1]} 26. Qh5 {[%clk 0:00:39.4]} 26...
Qg6 {[%clk 0:01:54]} 27. Qe2 {[%clk 0:00:38.8]} 27... e4 {[%clk 0:01:48.6]} 28.
Nf4 {[%clk 0:00:31.6]} 28... Qf5 {[%clk 0:01:48.9]} 29. Nh5 {[%clk 0:00:29.6]}
29... Ra6 {[%clk 0:01:40.1]} 30. f4 {[%clk 0:00:29]} 30... Rg6 {[%clk
0:01:29.8]} 31. Kh1 {[%clk 0:00:28.8]} 31... e3 {[%clk 0:01:18.1]} 32. g4 {[%clk
0:00:26.3]} 32... Qe4+ {[%clk 0:01:18.3]} 33. Kh2 {[%clk 0:00:26.6]} 33... Bd6
{[%clk 0:01:09.2]} 34. Ng3 {[%clk 0:00:12.4]} 34... Bxf4 {[%clk 0:01:05.9]} 35.
Rxf4 {[%clk 0:00:12.4]} 35... Qxf4 {[%clk 0:01:06.8]} 36. Rf1 {[%clk 0:00:12.4]}
36... Qd6 {[%clk 0:01:01.7]} 37. Kg2 {[%clk 0:00:12.6]} 37... Nd2 {[%clk
0:00:54.6]} 38. Nf5 {[%clk 0:00:09.9]} 38... Qe6 {[%clk 0:00:55.1]} 39. Rf4
{[%clk 0:00:09.7]} 39... Rxc3 {[%clk 0:00:50.7]} 40. h4 {[%clk 0:00:09.2]} 40...
Rc2 {[%clk 0:00:45.4]} 41. g5 {[%clk 0:00:09]} 41... Nf3 {[%clk 0:00:39.8]} 42.
Kxf3 {[%clk 0:00:06.3]} 42... Rxe2 {[%clk 0:00:39.6]} 43. Kxe2 {[%clk
0:00:07.2]} 43... Qa6+ {[%clk 0:00:36.3]} 44. Kxe3 {[%clk 0:00:06.9]} 44... Re6+
{[%clk 0:00:37]} 45. Kf3 {[%clk 0:00:04.4]} 45... Qe2+ {[%clk 0:00:37.6]} 46.
Kg3 {[%clk 0:00:04.8]} 46... Qxa2 {[%clk 0:00:37.7]} 47. Nh6+ {[%clk 0:00:04.5]}
47... Rxh6 {[%clk 0:00:37.8]} 48. gxh6 {[%clk 0:00:04.7]} 48... Qd2 {[%clk
0:00:38.1]} 0-1

[Event "*** SCC Grand Prix: Titled Tuesday Blitz"]
[Site "Chess.com"]
[Date "2020.10.06"]
[Round "7"]
[White "Itk04"]
[Black "frederiksvane"]
[Result "0-1"]
[WhiteElo "2468"]
[BlackElo "2674"]
[TimeControl "180+1"]
[EndTime "11:19:37 PDT"]
[Termination "frederiksvane won on time"]

1. d4 {[%clk 0:03:00.9]} 1... Nf6 {[%clk 0:03:00]} 2. c4 {[%clk 0:03:00.7]} 2...
e6 {[%clk 0:03:00.5]} 3. Nc3 {[%clk 0:02:54.8]} 3... Bb4 {[%clk 0:03:00.2]} 4.
Nf3 {[%clk 0:02:54.6]} 4... b6 {[%clk 0:02:58.5]} 5. Bd2 {[%clk 0:02:54.8]} 5...
Bb7 {[%clk 0:02:55.2]} 6. e3 {[%clk 0:02:54.9]} 6... O-O {[%clk 0:02:55.1]} 7.
Bd3 {[%clk 0:02:54.7]} 7... c5 {[%clk 0:02:54.5]} 8. a3 {[%clk 0:02:21.5]} 8...
Bxc3 {[%clk 0:02:49.8]} 9. Bxc3 {[%clk 0:02:18.9]} 9... cxd4 {[%clk 0:02:50.1]}
10. Nxd4 {[%clk 0:02:09.5]} 10... d5 {[%clk 0:02:46.3]} 11. O-O {[%clk
0:02:07.5]} 11... Nc6 {[%clk 0:02:44.1]} 12. Rc1 {[%clk 0:01:53.8]} 12... Rc8
{[%clk 0:02:38]} 13. Nxc6 {[%clk 0:01:43.7]} 13... Bxc6 {[%clk 0:02:33.8]} 14.
Bb4 {[%clk 0:01:38.8]} 14... Re8 {[%clk 0:02:33]} 15. c5 {[%clk 0:01:38.8]}
15... a5 {[%clk 0:02:25.4]} 16. Bd2 {[%clk 0:01:38.7]} 16... b5 {[%clk
0:02:12.6]} 17. b4 {[%clk 0:01:33.1]} 17... a4 {[%clk 0:02:10.1]} 18. Bc3 {[%clk
0:01:28.9]} 18... e5 {[%clk 0:02:08.4]} 19. Qe2 {[%clk 0:01:14.2]} 19... d4
{[%clk 0:02:07.1]} 20. Bb2 {[%clk 0:01:10.8]} 20... e4 {[%clk 0:02:07.1]} 21.
Bb1 {[%clk 0:01:07.1]} 21... d3 {[%clk 0:02:05]} 22. Qd2 {[%clk 0:01:07.2]}
22... Nd5 {[%clk 0:01:51.3]} 23. f3 {[%clk 0:00:39.6]} 23... Qg5 {[%clk
0:01:30.2]} 24. fxe4 {[%clk 0:00:30.6]} 24... Rxe4 {[%clk 0:01:24.1]} 25. Bxd3
{[%clk 0:00:21.7]} 25... Rxe3 {[%clk 0:01:19.8]} 26. Rce1 {[%clk 0:00:11.8]}
26... h6 {[%clk 0:00:48.4]} 27. Bd4 {[%clk 0:00:12.1]} 27... Rxe1 {[%clk
0:00:46.8]} 28. Qxe1 {[%clk 0:00:08.1]} 28... Nf4 {[%clk 0:00:26.7]} 29. Be4
{[%clk 0:00:08.2]} 29... Re8 {[%clk 0:00:21.4]} 30. Bxc6 {[%clk 0:00:08.1]}
30... Rxe1 {[%clk 0:00:20.6]} 31. Rxe1 {[%clk 0:00:09]} 31... Nh3+ {[%clk
0:00:16.7]} 32. Kh1 {[%clk 0:00:07.2]} 32... Qf4 {[%clk 0:00:15.6]} 33. gxh3
{[%clk 0:00:06.9]} 33... Qxd4 {[%clk 0:00:15.6]} 34. Bg2 {[%clk 0:00:07.1]}
34... Qc3 {[%clk 0:00:14.7]} 35. Rf1 {[%clk 0:00:06.9]} 35... Kf8 {[%clk
0:00:11.9]} 36. c6 {[%clk 0:00:07.3]} 36... Qxa3 {[%clk 0:00:10.7]} 37. Rd1
{[%clk 0:00:03.8]} 37... Qc3 {[%clk 0:00:10.7]} 38. h4 {[%clk 0:00:02.1]} 38...
a3 {[%clk 0:00:09.8]} 0-1

[Event "*** SCC Grand Prix: Titled Tuesday Blitz"]
[Site "Chess.com"]
[Date "2020.10.06"]
[Round "7"]
[White "ARTHURMOTIVATOR"]
[Black "BigAl"]
[Result "0-1"]
[WhiteElo "2338"]
[BlackElo "2511"]
[TimeControl "180+1"]
[EndTime "11:19:39 PDT"]
[Termination "BigAl won on time"]

1. e4 {[%clk 0:03:00.9]} 1... c6 {[%clk 0:02:59.2]} 2. d4 {[%clk 0:02:59.8]}
2... d5 {[%clk 0:03:00.1]} 3. exd5 {[%clk 0:02:59.9]} 3... cxd5 {[%clk
0:03:00.1]} 4. Bd3 {[%clk 0:03:00.3]} 4... Nc6 {[%clk 0:03:00.4]} 5. c3 {[%clk
0:02:59.7]} 5... Qc7 {[%clk 0:03:00.7]} 6. h3 {[%clk 0:02:58]} 6... g6 {[%clk
0:02:57.7]} 7. Nf3 {[%clk 0:02:58.1]} 7... Bf5 {[%clk 0:02:55.7]} 8. O-O {[%clk
0:02:58.1]} 8... Nf6 {[%clk 0:02:56.3]} 9. Re1 {[%clk 0:02:58]} 9... e6 {[%clk
0:02:53.6]} 10. Bf1 {[%clk 0:02:57.8]} 10... h5 {[%clk 0:02:47.8]} 11. Na3
{[%clk 0:02:57.6]} 11... a6 {[%clk 0:02:30.9]} 12. Nc2 {[%clk 0:02:52.4]} 12...
Bd6 {[%clk 0:02:29.1]} 13. Ne3 {[%clk 0:02:48.1]} 13... O-O {[%clk 0:02:22]} 14.
g3 {[%clk 0:02:02.6]} 14... Bxg3 {[%clk 0:01:52.3]} 15. Nxf5 {[%clk 0:01:46.3]}
15... exf5 {[%clk 0:01:45.3]} 16. fxg3 {[%clk 0:01:46.5]} 16... Qxg3+ {[%clk
0:01:45.8]} 17. Bg2 {[%clk 0:01:44.4]} 17... Rae8 {[%clk 0:01:43.2]} 18. Bd2
{[%clk 0:01:35.6]} 18... Ne4 {[%clk 0:01:41]} 19. Re2 {[%clk 0:01:33.2]} 19...
Re7 {[%clk 0:01:23.8]} 20. Qe1 {[%clk 0:01:25.9]} 20... Qc7 {[%clk 0:01:22.8]}
21. Bg5 {[%clk 0:01:20.6]} 21... Re6 {[%clk 0:01:20.8]} 22. Qh4 {[%clk
0:01:04.7]} 22... Nxg5 {[%clk 0:01:16]} 23. Rxe6 {[%clk 0:00:54.4]} 23... Nxe6
{[%clk 0:01:15.8]} 24. Re1 {[%clk 0:00:54.3]} 24... Qd8 {[%clk 0:01:04.5]} 25.
Qg3 {[%clk 0:00:46.6]} 25... f4 {[%clk 0:00:39.5]} 26. Qf2 {[%clk 0:00:44.6]}
26... Ne7 {[%clk 0:00:37.6]} 27. Nh4 {[%clk 0:00:25.2]} 27... Kg7 {[%clk
0:00:32.8]} 28. Kh1 {[%clk 0:00:23.9]} 28... Ng8 {[%clk 0:00:29.4]} 29. Nf3
{[%clk 0:00:20]} 29... Nf6 {[%clk 0:00:29.5]} 30. Ne5 {[%clk 0:00:18.1]} 30...
Re8 {[%clk 0:00:28.9]} 31. Rf1 {[%clk 0:00:18]} 31... Ne4 {[%clk 0:00:27.5]} 32.
Bxe4 {[%clk 0:00:13.8]} 32... dxe4 {[%clk 0:00:28.4]} 33. Qg1 {[%clk 0:00:11.2]}
33... Qd5 {[%clk 0:00:25.3]} 34. Kh2 {[%clk 0:00:10.4]} 34... e3 {[%clk
0:00:21.7]} 35. Nd3 {[%clk 0:00:08.2]} 35... Qe4 {[%clk 0:00:20.7]} 36. Ne5
{[%clk 0:00:05.2]} 36... f6 {[%clk 0:00:19.1]} 37. Nf3 {[%clk 0:00:05.1]} 37...
Kh7 {[%clk 0:00:17.1]} 38. Qg2 {[%clk 0:00:04.1]} 38... Ng7 {[%clk 0:00:15.3]}
39. Rg1 {[%clk 0:00:04.3]} 39... g5 {[%clk 0:00:14.7]} 40. Qe2 {[%clk
0:00:03.4]} 40... Kh6 {[%clk 0:00:13.3]} 41. h4 {[%clk 0:00:02.2]} 41... g4
{[%clk 0:00:13.2]} 0-1

[Event "*** SCC Grand Prix: Titled Tuesday Blitz"]
[Site "Chess.com"]
[Date "2020.10.06"]
[Round "7"]
[White "MPGM"]
[Black "Moultino06"]
[Result "0-1"]
[WhiteElo "2454"]
[BlackElo "2646"]
[TimeControl "180+1"]
[EndTime "11:19:41 PDT"]
[Termination "Moultino06 won on time"]

1. Nf3 {[%clk 0:03:00.9]} 1... b6 {[%clk 0:02:58.1]} 2. g3 {[%clk 0:02:52.7]}
2... Bb7 {[%clk 0:02:58.4]} 3. Bg2 {[%clk 0:02:53.6]} 3... g6 {[%clk 0:02:58.8]}
4. O-O {[%clk 0:02:54.2]} 4... Bg7 {[%clk 0:02:59.4]} 5. d4 {[%clk 0:02:55.1]}
5... e6 {[%clk 0:02:58.1]} 6. c4 {[%clk 0:02:54.9]} 6... Ne7 {[%clk 0:02:58.1]}
7. Nc3 {[%clk 0:02:52.2]} 7... f5 {[%clk 0:02:54.3]} 8. h4 {[%clk 0:02:47.8]}
8... O-O {[%clk 0:02:52]} 9. h5 {[%clk 0:02:42.6]} 9... d6 {[%clk 0:02:47]} 10.
Re1 {[%clk 0:02:29]} 10... Qc8 {[%clk 0:02:37.7]} 11. h6 {[%clk 0:02:26]} 11...
Bf6 {[%clk 0:02:33.2]} 12. e4 {[%clk 0:02:25.8]} 12... Nd7 {[%clk 0:02:26.7]}
13. exf5 {[%clk 0:02:17.5]} 13... Nxf5 {[%clk 0:02:22.9]} 14. d5 {[%clk
0:01:42.6]} 14... e5 {[%clk 0:02:14.7]} 15. Ne4 {[%clk 0:01:42.5]} 15... Qd8
{[%clk 0:01:58.5]} 16. Nfg5 {[%clk 0:01:39.3]} 16... Nd4 {[%clk 0:01:53.8]} 17.
Be3 {[%clk 0:01:33]} 17... Nc5 {[%clk 0:01:40.9]} 18. Bxd4 {[%clk 0:01:25.5]}
18... Nxe4 {[%clk 0:01:20.6]} 19. Nxe4 {[%clk 0:01:18.2]} 19... exd4 {[%clk
0:01:20.6]} 20. Nxf6+ {[%clk 0:01:05.1]} 20... Qxf6 {[%clk 0:01:21.5]} 21. f4
{[%clk 0:01:05.6]} 21... Rae8 {[%clk 0:01:10.9]} 22. Kh2 {[%clk 0:00:46.1]}
22... Bc8 {[%clk 0:01:06.7]} 23. Qd2 {[%clk 0:00:41.9]} 23... Bf5 {[%clk
0:01:03.7]} 24. Rad1 {[%clk 0:00:39.1]} 24... d3 {[%clk 0:00:59.2]} 25. b3
{[%clk 0:00:33.8]} 25... Bg4 {[%clk 0:00:55.8]} 26. Rc1 {[%clk 0:00:28.6]} 26...
Be2 {[%clk 0:00:52.7]} 27. Bf1 {[%clk 0:00:25.9]} 27... Qf5 {[%clk 0:00:50.8]}
28. Bxe2 {[%clk 0:00:21.3]} 28... dxe2 {[%clk 0:00:49.8]} 29. Kg2 {[%clk
0:00:14.5]} 29... Qg4 {[%clk 0:00:34.1]} 30. Rc2 {[%clk 0:00:10.4]} 30... g5
{[%clk 0:00:32.1]} 31. Rxe2 {[%clk 0:00:10.6]} 31... gxf4 {[%clk 0:00:32.4]} 32.
Rxe8 {[%clk 0:00:09.7]} 32... Qxg3+ {[%clk 0:00:31.8]} 33. Kf1 {[%clk
0:00:05.5]} 33... Rxe8 {[%clk 0:00:30.2]} 34. Qc3 {[%clk 0:00:03.3]} 34... f3
{[%clk 0:00:23.2]} 35. Qg7+ {[%clk 0:00:02.5]} 35... Qxg7 {[%clk 0:00:22.9]} 36.
hxg7 {[%clk 0:00:02.9]} 36... Kxg7 {[%clk 0:00:19.1]} 37. Rc3 {[%clk 0:00:03.5]}
37... Rf8 {[%clk 0:00:17.9]} 38. Re3 {[%clk 0:00:03.3]} 38... f2 {[%clk
0:00:17.2]} 39. Re7+ {[%clk 0:00:01.3]} 39... Rf7 {[%clk 0:00:17.6]} 40. Re8
{[%clk 0:00:01.9]} 40... a5 {[%clk 0:00:16.8]} 41. a3 {[%clk 0:00:01.3]} 41...
h5 {[%clk 0:00:14.5]} 0-1

[Event "*** SCC Grand Prix: Titled Tuesday Blitz"]
[Site "Chess.com"]
[Date "2020.10.06"]
[Round "7"]
[White "zmeeed67"]
[Black "VladaSviridova"]
[Result "1-0"]
[WhiteElo "2375"]
[BlackElo "2250"]
[TimeControl "180+1"]
[EndTime "11:19:41 PDT"]
[Termination "zmeeed67 won on time"]

1. e4 {[%clk 0:03:00.9]} 1... e6 {[%clk 0:02:59.8]} 2. Nf3 {[%clk 0:02:58.9]}
2... d5 {[%clk 0:03:00.7]} 3. e5 {[%clk 0:02:58.9]} 3... c5 {[%clk 0:02:59.3]}
4. b4 {[%clk 0:02:58.9]} 4... cxb4 {[%clk 0:02:59]} 5. a3 {[%clk 0:02:59.1]}
5... Nc6 {[%clk 0:02:58.8]} 6. axb4 {[%clk 0:02:58.8]} 6... Bxb4 {[%clk
0:02:59.5]} 7. c3 {[%clk 0:02:59]} 7... Be7 {[%clk 0:02:59.4]} 8. d4 {[%clk
0:02:59.1]} 8... f6 {[%clk 0:02:58.9]} 9. Bd3 {[%clk 0:02:58.1]} 9... fxe5
{[%clk 0:02:57.2]} 10. dxe5 {[%clk 0:02:57.8]} 10... Nh6 {[%clk 0:02:56.8]} 11.
Bxh6 {[%clk 0:02:41]} 11... gxh6 {[%clk 0:02:56.1]} 12. O-O {[%clk 0:02:41.1]}
12... O-O {[%clk 0:02:55.3]} 13. Qc2 {[%clk 0:02:37.8]} 13... Rf7 {[%clk
0:02:54.7]} 14. Nbd2 {[%clk 0:02:37.5]} 14... Bd7 {[%clk 0:02:48.1]} 15. h3
{[%clk 0:02:26.6]} 15... Qc7 {[%clk 0:02:46]} 16. Rfe1 {[%clk 0:02:25.9]} 16...
a6 {[%clk 0:02:26.1]} 17. Re3 {[%clk 0:02:16.7]} 17... Raf8 {[%clk 0:02:16.3]}
18. Rae1 {[%clk 0:02:13.8]} 18... Na5 {[%clk 0:01:34]} 19. Nf1 {[%clk
0:01:58.6]} 19... Nc4 {[%clk 0:01:29.8]} 20. R3e2 {[%clk 0:01:57.8]} 20... Rg7
{[%clk 0:01:21]} 21. N1h2 {[%clk 0:01:56.9]} 21... Kh8 {[%clk 0:01:18.2]} 22.
Kh1 {[%clk 0:01:57.1]} 22... h5 {[%clk 0:01:14.8]} 23. g3 {[%clk 0:01:37.9]}
23... b5 {[%clk 0:01:11.9]} 24. h4 {[%clk 0:01:32.1]} 24... Bc6 {[%clk
0:01:08.7]} 25. Kg1 {[%clk 0:01:30.1]} 25... a5 {[%clk 0:01:02.9]} 26. Qc1
{[%clk 0:01:27.8]} 26... Qb6 {[%clk 0:00:56.2]} 27. Ng5 {[%clk 0:01:21]} 27...
Bd7 {[%clk 0:00:49]} 28. Nf1 {[%clk 0:01:13]} 28... a4 {[%clk 0:00:24.6]} 29.
Qb1 {[%clk 0:01:08.2]} 29... Bxg5 {[%clk 0:00:21.5]} 30. hxg5 {[%clk 0:01:07.5]}
30... Bc6 {[%clk 0:00:10.7]} 31. Qc1 {[%clk 0:01:01.8]} 31... a3 {[%clk
0:00:09.4]} 32. Bxc4 {[%clk 0:00:59.7]} 32... dxc4 {[%clk 0:00:09.4]} 33. Qxa3
{[%clk 0:00:59.5]} 33... Rgf7 {[%clk 0:00:08.9]} 34. Ne3 {[%clk 0:00:56.2]}
34... Bb7 {[%clk 0:00:08.1]} 35. Qd6 {[%clk 0:00:54.4]} 35... Qa5 {[%clk
0:00:05.9]} 36. Qxe6 {[%clk 0:00:48.3]} 36... Qxc3 {[%clk 0:00:05.8]} 37. g6
{[%clk 0:00:48.7]} 37... hxg6 {[%clk 0:00:04.8]} 38. Qxg6 {[%clk 0:00:39.8]}
38... Qxe5 {[%clk 0:00:04.6]} 39. Ng2 {[%clk 0:00:39.7]} 39... Qf6 {[%clk
0:00:04.2]} 40. Qxh5+ {[%clk 0:00:39.3]} 40... Kg8 {[%clk 0:00:03.6]} 41. Nf4
{[%clk 0:00:37.1]} 41... Qg7 {[%clk 0:00:03.1]} 42. Re8 {[%clk 0:00:34.8]} 42...
Rxf4 {[%clk 0:00:02.6]} 43. Qxb5 {[%clk 0:00:28.3]} 43... Rf7 {[%clk 0:00:01.1]}
44. Qxc4 {[%clk 0:00:21.2]} 1-0

[Event "*** SCC Grand Prix: Titled Tuesday Blitz"]
[Site "Chess.com"]
[Date "2020.10.06"]
[Round "7"]
[White "nochewycandy"]
[Black "kreonx"]
[Result "0-1"]
[WhiteElo "2468"]
[BlackElo "2365"]
[TimeControl "180+1"]
[EndTime "11:19:44 PDT"]
[Termination "kreonx won by resignation"]

1. e4 {[%clk 0:03:00.9]} 1... c6 {[%clk 0:02:59.4]} 2. Nc3 {[%clk 0:02:59.7]}
2... d5 {[%clk 0:02:58.6]} 3. Nf3 {[%clk 0:03:00.6]} 3... dxe4 {[%clk
0:02:58.4]} 4. Nxe4 {[%clk 0:03:01.5]} 4... Nf6 {[%clk 0:02:58.6]} 5. Qe2 {[%clk
0:02:59.9]} 5... Nxe4 {[%clk 0:02:55.9]} 6. Qxe4 {[%clk 0:03:00.8]} 6... Nd7
{[%clk 0:02:55.6]} 7. Bc4 {[%clk 0:03:01]} 7... Nf6 {[%clk 0:02:55.3]} 8. Ne5
{[%clk 0:03:01.6]} 8... e6 {[%clk 0:02:47.8]} 9. Qe2 {[%clk 0:02:59.7]} 9... Bd6
{[%clk 0:02:42.1]} 10. O-O {[%clk 0:02:58.6]} 10... O-O {[%clk 0:02:37.4]} 11.
d4 {[%clk 0:02:58.2]} 11... c5 {[%clk 0:02:32.8]} 12. dxc5 {[%clk 0:02:57.4]}
12... Bxc5 {[%clk 0:02:31.3]} 13. Bg5 {[%clk 0:02:57.6]} 13... Be7 {[%clk
0:02:30]} 14. Rad1 {[%clk 0:02:56.6]} 14... Qc7 {[%clk 0:02:30.5]} 15. Bb3
{[%clk 0:02:53.2]} 15... Nd5 {[%clk 0:02:17.8]} 16. Bxe7 {[%clk 0:02:50.7]}
16... Nxe7 {[%clk 0:02:16.9]} 17. Rfe1 {[%clk 0:02:49.1]} 17... Ng6 {[%clk
0:02:01.3]} 18. c3 {[%clk 0:02:01.6]} 18... b6 {[%clk 0:01:52]} 19. Bc2 {[%clk
0:01:42.9]} 19... Nxe5 {[%clk 0:01:20.6]} 20. Qxe5 {[%clk 0:01:43.8]} 20... Qxe5
{[%clk 0:01:20.3]} 21. Rxe5 {[%clk 0:01:44.7]} 21... Ba6 {[%clk 0:01:20.3]} 22.
Re4 {[%clk 0:01:30.4]} 22... Rfd8 {[%clk 0:01:16]} 23. Red4 {[%clk 0:01:29.8]}
23... Rxd4 {[%clk 0:01:16.2]} 24. Rxd4 {[%clk 0:01:29.7]} 24... Bb5 {[%clk
0:01:15.5]} 25. a4 {[%clk 0:01:27.6]} 25... Be8 {[%clk 0:01:14.6]} 26. f4 {[%clk
0:01:27]} 26... Kf8 {[%clk 0:01:14]} 27. g4 {[%clk 0:01:21.9]} 27... h6 {[%clk
0:01:13.7]} 28. h4 {[%clk 0:01:20.9]} 28... Ke7 {[%clk 0:01:13.2]} 29. Kf2
{[%clk 0:01:19.9]} 29... Rd8 {[%clk 0:01:11.4]} 30. Ke3 {[%clk 0:01:16.1]} 30...
Rxd4 {[%clk 0:01:10.7]} 31. Kxd4 {[%clk 0:01:17]} 31... Kd6 {[%clk 0:01:11.1]}
32. b4 {[%clk 0:00:56.7]} 32... f6 {[%clk 0:01:10.8]} 33. Bb3 {[%clk 0:00:45.3]}
33... e5+ {[%clk 0:01:06.6]} 34. Ke3 {[%clk 0:00:44.4]} 34... a5 {[%clk
0:01:00.4]} 35. g5 {[%clk 0:00:38.2]} 35... exf4+ {[%clk 0:00:59.4]} 36. Kxf4
{[%clk 0:00:37.7]} 36... fxg5+ {[%clk 0:00:59.3]} 37. hxg5 {[%clk 0:00:37.6]}
37... hxg5+ {[%clk 0:00:54.6]} 38. Kxg5 {[%clk 0:00:38.5]} 38... Ke5 {[%clk
0:00:54.8]} 39. Bc2 {[%clk 0:00:34.5]} 39... Bf7 {[%clk 0:00:31.8]} 40. bxa5
{[%clk 0:00:22]} 40... bxa5 {[%clk 0:00:31.1]} 41. Bd3 {[%clk 0:00:22.6]} 41...
Kd5 {[%clk 0:00:23]} 42. Bb5 {[%clk 0:00:20.6]} 42... Kc5 {[%clk 0:00:22.4]} 43.
Kf5 {[%clk 0:00:18.3]} 43... Bc4 {[%clk 0:00:22.4]} 44. Be8 {[%clk 0:00:15.9]}
44... Bd3+ {[%clk 0:00:20.9]} 45. Kg5 {[%clk 0:00:15.5]} 45... Kc4 {[%clk
0:00:21.4]} 46. Bb5+ {[%clk 0:00:14.4]} 46... Kxc3 {[%clk 0:00:21.8]} 47. Be8
{[%clk 0:00:14.9]} 47... Kb4 {[%clk 0:00:21.8]} 48. Kf4 {[%clk 0:00:15.1]} 48...
Bc2 {[%clk 0:00:21.9]} 49. Ke5 {[%clk 0:00:15.5]} 49... Bxa4 {[%clk 0:00:22.4]}
50. Bf7 {[%clk 0:00:16.4]} 50... Bc2 {[%clk 0:00:22]} 51. Kd4 {[%clk 0:00:16.7]}
51... a4 {[%clk 0:00:21.1]} 52. Ke3 {[%clk 0:00:16.7]} 52... a3 {[%clk
0:00:20.9]} 53. Kd2 {[%clk 0:00:16.3]} 53... Bb3 {[%clk 0:00:21.1]} 0-1

[Event "*** SCC Grand Prix: Titled Tuesday Blitz"]
[Site "Chess.com"]
[Date "2020.10.06"]
[Round "7"]
[White "sokidze"]
[Black "Miss_JJ20"]
[Result "1-0"]
[WhiteElo "2690"]
[BlackElo "2468"]
[TimeControl "180+1"]
[EndTime "11:19:45 PDT"]
[Termination "sokidze won on time"]

1. e4 {[%clk 0:03:00.9]} 1... c5 {[%clk 0:02:58.2]} 2. Nf3 {[%clk 0:03:01.1]}
2... Nf6 {[%clk 0:02:58.5]} 3. e5 {[%clk 0:02:55.2]} 3... Nd5 {[%clk 0:02:58.5]}
4. Nc3 {[%clk 0:02:55.8]} 4... e6 {[%clk 0:02:58.5]} 5. g3 {[%clk 0:02:44.4]}
5... Nc6 {[%clk 0:02:51.7]} 6. Bg2 {[%clk 0:02:44.3]} 6... d6 {[%clk 0:02:46.9]}
7. exd6 {[%clk 0:02:43.5]} 7... Bxd6 {[%clk 0:02:46.4]} 8. O-O {[%clk 0:02:44]}
8... O-O {[%clk 0:02:46.3]} 9. d3 {[%clk 0:02:27.8]} 9... b6 {[%clk 0:02:37]}
10. Ne4 {[%clk 0:02:20.5]} 10... Bb7 {[%clk 0:02:28.7]} 11. Nxd6 {[%clk
0:02:18.4]} 11... Qxd6 {[%clk 0:02:29.6]} 12. Nd2 {[%clk 0:02:18.5]} 12... e5
{[%clk 0:02:18.9]} 13. Nc4 {[%clk 0:02:16.3]} 13... Qd7 {[%clk 0:02:18.9]} 14.
Re1 {[%clk 0:02:16.2]} 14... Rae8 {[%clk 0:02:18.1]} 15. a4 {[%clk 0:02:13.5]}
15... f5 {[%clk 0:02:06]} 16. b3 {[%clk 0:01:42.9]} 16... f4 {[%clk 0:01:16]}
17. Bb2 {[%clk 0:01:38]} 17... Nd4 {[%clk 0:01:03.8]} 18. Nxe5 {[%clk
0:01:33.4]} 18... Rxe5 {[%clk 0:01:03.3]} 19. Rxe5 {[%clk 0:01:29.6]} 19... f3
{[%clk 0:01:03.8]} 20. Bf1 {[%clk 0:01:03.7]} 20... Nf4 {[%clk 0:01:03.9]} 21.
Qd2 {[%clk 0:00:46.9]} 21... Nde2+ {[%clk 0:00:49.2]} 22. Kh1 {[%clk 0:00:43.6]}
22... Nh3 {[%clk 0:00:11.5]} 23. Qe3 {[%clk 0:00:37.6]} 23... h6 {[%clk
0:00:07.9]} 24. Re1 {[%clk 0:00:25.5]} 24... Kh7 {[%clk 0:00:07]} 25. a5 {[%clk
0:00:17]} 25... Rf7 {[%clk 0:00:06.8]} 26. axb6 {[%clk 0:00:15.7]} 26... axb6
{[%clk 0:00:07.7]} 27. b4 {[%clk 0:00:14.5]} 27... cxb4 {[%clk 0:00:07]} 28.
Qxb6 {[%clk 0:00:12]} 28... b3 {[%clk 0:00:07.5]} 29. cxb3 {[%clk 0:00:08.7]}
29... Qxd3 {[%clk 0:00:07.7]} 30. Ba1 {[%clk 0:00:04.1]} 30... Qxb3 {[%clk
0:00:07.8]} 31. Qc5 {[%clk 0:00:03]} 31... Qa3 {[%clk 0:00:07.1]} 32. Bxh3
{[%clk 0:00:02.3]} 32... Qxc5 {[%clk 0:00:04.8]} 33. Rxc5 {[%clk 0:00:03.2]}
33... Rd7 {[%clk 0:00:04.4]} 34. Be6 {[%clk 0:00:02.8]} 34... Re7 {[%clk
0:00:04.2]} 35. Bf5+ {[%clk 0:00:03.7]} 35... g6 {[%clk 0:00:04.3]} 36. Bd3
{[%clk 0:00:04.6]} 36... Nxg3+ {[%clk 0:00:04.2]} 37. hxg3 {[%clk 0:00:05]}
37... Rxe1+ {[%clk 0:00:05.1]} 38. Kh2 {[%clk 0:00:05.7]} 38... Rxa1 {[%clk
0:00:02.8]} 39. Rc7+ {[%clk 0:00:05.7]} 39... Kg8 {[%clk 0:00:03.2]} 40. Rxb7
{[%clk 0:00:06.6]} 40... Ra2 {[%clk 0:00:02.4]} 41. Bc4+ {[%clk 0:00:07]} 1-0